Cogmind - Beta 13 @@@ ROGUE MODE // 2024.05.12 @ 11:16:42 Player: Barbarossa Result: Destroyed by G-47 Trooper with Particle Gun Performance ------------- Evolutions (1) 500 Regions Visited (2) 400 Robots Destroyed (38) 190 Value Destroyed (1026) 1026 Prototype IDs (4) 80 Alien Tech Used (0) 0 Bonus (81) 81 TOTAL SCORE: 2277 Bonus ------- High Alert Combat Kills 81 Cogmind --------- Core Integrity 0/400 Matter 236/300 Energy 280/280 System Corruption 0% Temperature Hot (256) Movement Rolling (115) Ox1 Location -9/Materials Parts ------- > --- POWER (1) -------- Heavy Ion Engine > --- PROPULSION (4) --- Light Treads Light Treads Compact Wheel > --- UTILITY (2) ------ Medium Storage Unit Signal Interpreter > --- WEAPON (2) ------- Improved Medium Laser Heavy Assault Rifle > --- INVENTORY (10) --- Light Treads Hover Unit Hover Unit Hover Unit Improved Heat Sink Propulsion Shielding Hacking Suite Improved Medium Laser Improved Medium Laser Assault Rifle Peak State ------------ > --- POWER ------------ Heavy Ion Engine > --- PROPULSION ------- Light Treads Light Treads Compact Wheel Armored Wheel > --- UTILITY ---------- Medium Storage Unit Signal Interpreter > --- WEAPON ----------- Improved Medium Laser Heavy Assault Rifle > --- INVENTORY -------- Light Treads Hover Unit Hover Unit Hover Unit Improved Heat Sink Light Armor Plating Hacking Suite Improved Medium Laser Improved Medium Laser Assault Rifle [Rating: 16] Favorites ----------- Power Light Ion Engine Engine Light Ion Engine Propulsion Aluminum Leg Treads Light Treads Leg Aluminum Leg Wheel Wheel Hover Unit Hover Unit Utility Signal Interpreter Storage Small Storage Unit Processor Signal Interpreter Weapon Light Assault Rifle Energy Gun Particle Gun Ballistic Gun Light Assault Rifle Special Melee Weapon Datajack Build | -11 -10 -9 ------- Run | Yrd Mat Mat Slots Evolved 2 | . . 2 Power . | . . . Propulsion 2 | . . 2 Utility . | . . . Weapon . | . . . Parts Attached 45 | . 8 37 Power 6 | . 1 5 Engine 6 | . 1 5 Core . | . . . Reactor . | . . . Propulsion 22 | . 4 18 Treads 8 | . . 8 Leg 4 | . 4 . Wheel 9 | . . 9 Hover 1 | . . 1 Flight . | . . . Utility 2 | . 1 1 Device . | . . . Storage 1 | . . 1 Processor 1 | . 1 . Hackware . | . . . Protection . | . . . Artifact . | . . . Weapon 15 | . 2 13 Energy Gun 11 | . 2 9 Energy Cannon . | . . . Ballistic Gun 3 | . . 3 Ballistic Cannon . | . . . Launcher . | . . . Special Weapon . | . . . Impact Weapon . | . . . Slashing Weapon . | . . . Piercing Weapon . | . . . Special Melee Weapon 1 | . . 1 Unidentified Prototypes 4 | . . 4 Parts Lost 8 | . . 8 Power 1 | . . 1 Propulsion 5 | . . 5 Utility . | . . . Weapon 2 | . . 2 Highest Loss Streak 2 | . . 2 To Critical Strikes . | . . . Average Slot Usage (%) 95 | . 98 94 Engine 11 | . 12 11 Treads 8 | . . 11 Leg 15 | . 28 10 Wheel 13 | . . 18 Storage 11 | . 14 11 Processor 11 | . 13 11 Energy Gun 11 | . 14 10 Ballistic Gun 10 | . 14 8 Special Melee Weapon 1 | . . 1 Naked Turns . | . . . Heaviest Build 24 | 11 12 24 Greatest Support 28 | 20 20 28 Greatest Overweight (x) 1 | . . 1 Average Overweight (x) . | . . . Largest Inventory Capacity 10 | . 8 10 Average Capacity 8 | . 8 8 Most Carried 10 | . 8 10 Average Carried 8 | . 7 8 Final Capacity 10 | 8 8 10 Final Carried 10 | 6 8 10 Class Distribution -------------------- 56% | Mutant 43% | Scavenger-Mutant Dominant Class ---------------- Mutant | -10/Materials Scavenger-Mutant | -9/Materials Resources | -11 -10 -9 ----------- Run | Yrd Mat Mat Matter Collected 761 | 190 48 523 Remotely . | . . . Salvage Created 1482 | . 94 1388 Parts 87 | . 5 82 Haulers Intercepted 4 | . . 4 Recyclers Shooed . | . . . Parts Field Recycled . | . . . Retrieved Matter . | . . . Parts Self-Destructed . | . . . Prevented . | . . . Kills | -11 -10 -9 ------- Run | Yrd Mat Mat Combat Hostiles Destroyed 27 | . 2 25 Guns 27 | . 2 25 Classes Destroyed 9 | . 1 8 Worker 1 | . . 1 Tunneler 1 | . . 1 Hauler 4 | . . 4 Recycler 1 | . . 1 Operator 2 | . . 2 Watcher 2 | . . 2 Swarmer 3 | . . 3 Grunt 19 | . 2 17 Sentry 5 | . . 5 Best Kill Streak 10 | . 1 10 Combat Bots Only 6 | . 1 6 Max Kills in Single Turn 1 | . 1 1 Gunslinging . | . . . Exploded . | . . . Melee . | . . . Uniques/NPCs Destroyed . | . . . Combat | -11 -10 -9 -------- Run | Yrd Mat Mat Hostile Shots Fired 201 | . 10 191 Missed 51 | . . 51 Damage Taken 1884 | . 137 1747 Core 438 | . 28 410 Absorbed by Shields . | . . . Regen/Repaired (Parts) 13 | . 13 . Core Remaining (%) 94 | 100 88 . Volleys Fired 120 | . 8 112 Largest 2 | . 2 2 Hottest 85 | . 85 85 Shots Fired 211 | . 16 195 Gun 211 | . 16 195 Cannon . | . . . Launcher . | . . . Special . | . . . Kinetic 91 | . 8 83 Thermal 120 | . 8 112 Explosive . | . . . Electromagnetic . | . . . Robot Hit Streak 13 | . 3 13 Robot Miss Streak 7 | . 1 7 Penetration Max . | . . . Secondary Targets 8 | . . 8 Max Gunslinging Chain 1 | . . 1 Shots Hit Robots 139 | . 10 129 Core Hits 61 | . 6 55 Critical Kills 1 | . . 1 Critical Parts Destroyed 1 | . . 1 Critical Strikes 12 | . . 12 Burn 10 | . . 10 Destroy 2 | . . 2 Melee Attacks 3 | . . 3 Impact . | . . . Slashing . | . . . Piercing . | . . . Sneak Attacks 3 | . . 3 Combat Hostiles . | . . . Follow-up Attacks . | . . . Damage Inflicted 1939 | . 106 1833 Guns 1939 | . 106 1833 Cannons . | . . . Explosions . | . . . Melee . | . . . Ramming . | . . . Kinetic 756 | . 41 715 Thermal 1183 | . 65 1118 Explosive . | . . . Electromagnetic . | . . . Impact . | . . . Slashing . | . . . Piercing . | . . . Highest Corruption . | . . . Average Corruption . | . . . Corruption Purged . | . . . Corruption Blocked . | . . . Overload Shots . | . . . Overflow Damage . | . . . Projectiles . | . . . Explosions . | . . . Melee . | . . . Knockbacks . | . . . Impact . | . . . Kinetic . | . . . Secondary . | . . . Self-Inflicted Damage . | . . . Shots . | . . . Rammed . | . . . Targets Rammed . | . . . Kicked . | . . . Crushed . | . . . Highest Temperature 367 | . 202 367 Average Temperature 117 | . 92 119 Received Heat Transfer 906 | . 84 822 Effects 2 | . . 2 Energy Bleed 2 | . . 2 Siege Activations . | . . . Robots Corrupted . | . . . Combat Hostiles . | . . . Parts Fried . | . . . Impact Corruptions . | . . . Robots Melted . | . . . Combat Hostiles . | . . . Parts Melted 10 | . . 10 Heat Transferred 3510 | . 185 3325 Parts Sabotaged . | . . . Parts Stolen . | . . . Parts Stripped . | . . . Power Chain Reactions . | . . . Alert | -11 -10 -9 ------- Run | Yrd Mat Mat Peak Influence 658 | . 90 658 Initial 37 | . . 37 Average 287 | . 48 373 Maximum Alert Level 2 | . . 2 Low Security (%) 45 | . 100 25 Level 1 17 | . . 24 Level 2 37 | . . 50 Level 3 . | . . . Level 4 . | . . . Level 5 . | . . . High Security . | . . . Max Security . | . . . Squads Dispatched 3 | . . 3 Investigation . | . . . Extermination . | . . . Reinforcement 2 | . . 2 Assault 1 | . . 1 Garrison . | . . . Intercept . | . . . Searches Triggered . | . . . Construction Impeded . | . . . Haulers Reinforced . | . . . Active Scanning Responses . | . . . Cargo Convoy Interrupts . | . . . Stealth | -11 -10 -9 --------- Run | Yrd Mat Mat Distress Signals 2 | . . 2 Communications Jammed . | . . . Distress Signals . | . . . Times Spotted 50 | . 4 46 Peak Tracking Total 10 | . 2 10 Tactical Retreats 8 | . 1 7 Traps | -11 -10 -9 ------- Run | Yrd Mat Mat Traps Triggered 4 | . 2 2 Indirectly . | . . . Trap Hack Attempts . | . . . Triggered . | . . . Disarmed . | . . . Reprogrammed . | . . . Reused . | . . . Traps Extracted . | . . . Installed . | . . . Triggered . | . . . Machines | -11 -10 -9 ---------- Run | Yrd Mat Mat Machines Disabled . | . . . Max in Single Turn . | . . . Machines Repaired . | . . . Machines Dismantled . | . . . Machines Sabotaged . | . . . Overloaded Fab Kills . | . . . Hacking | -11 -10 -9 --------- Run | Yrd Mat Mat Machines Accessed 6 | . 3 3 Terminals 5 | . 2 3 Fabricators . | . . . Repair Stations 1 | . 1 . Recycling Units . | . . . Scanalyzers . | . . . Garrison Access . | . . . Total Hacks 23 | . 9 14 Successful 9 | . 4 5 Failed 14 | . 5 9 Catastrophic 2 | . 1 1 Database Lockouts . | . . . Manual 13 | . 3 10 Terminals 19 | . 5 14 Fabricators . | . . . Repair Stations 4 | . 4 . Recycling Units . | . . . Scanalyzers . | . . . Garrison Access . | . . . Terminal Hacks 2 | . . 2 Robot Analysis 1 | . . 1 Locate Traps 1 | . . 1 Fabricator Hacks . | . . . Repair Station Hacks 3 | . 3 . Scan Component 2 | . 2 . Repair 1 | . 1 . Recycling Unit Hacks . | . . . Scanalyzer . | . . . Garrison Access Hacks . | . . . Unauthorized Hacks 4 | . 1 3 Terminals 4 | . 1 3 Botnet 4 | . 1 3 Fabricators . | . . . Repair Stations . | . . . Recycling Units . | . . . Scanalyzers . | . . . Garrison Access . | . . . Data Cores Recovered . | . . . Used . | . . . Hacking Detections 6 | . 3 3 Full Trace Events . | . . . Feedback Events . | . . . Feedback Blocked . | . . . Robot Schematics Acquired . | . . . Robots Built . | . . . Authchips . | . . . Time . | . . . Total Robot Build Rating . | . . . Part Schematics Acquired . | . . . Parts Built . | . . . Authchips . | . . . Time . | . . . Total Part Build Rating . | . . . Parts Repaired 1 | . 1 . Time 26 | . 26 . Parts Recycled . | . . . Recycled Matter . | . . . Retrieved Matter . | . . . Retrieved Components . | . . . Parts Scanalyzed . | . . . Part Schematics Acquired . | . . . Parts Damaged . | . . . Bothacking | -11 -10 -9 ------------ Run | Yrd Mat Mat Used RIF Installer . | . . . Robots Hacked 1 | . . 1 Non-combat 1 | . . 1 Combat . | . . . Robot Hacks Applied 1 | . . 1 no_distress 1 | . . 1 Relay Couplers Released . | . . . Fabnet Peak Effective % . | . . . Robots Rewired . | . . . Allies Hacked . | . . . Hacks Repelled . | . . . Allies | -11 -10 -9 -------- Run | Yrd Mat Mat Total Allies . | . . . Largest Group . | . . . Highest-Rated Group . | . . . Highest-Rated Ally . | . . . Total Orders . | . . . Ally Attacks . | . . . Total Damage . | . . . Kills . | . . . Allies Corrupted . | . . . Allies Melted . | . . . Intel | -11 -10 -9 ------- Run | Yrd Mat Mat Robot Analysis Total 1 | . . 1 Derelict Logs Recovered . | . . . Drone Launches . | . . . Drone Recoveries . | . . . Exploration | -11 -10 -9 ------------- Run | Yrd Mat Mat Turns Passed 1247 | . 331 916 Spaces Moved 662 | 1 214 447 Core . | . . . Treads 49 | . . 49 Legs 302 | 1 214 87 Wheels 311 | . . 311 Hover . | . . . Flight . | . . . Fastest Speed 80 | 120 120 80 Average Speed 113 | 120 120 110 Slowest Speed 240 | 120 120 240 Overloaded Moves . | . . . Propulsion Burnouts . | . . . Robots Hopped . | . . . Cave-ins Triggered . | . . . Exploration Rate (%) 22 | 1 34 31 Regions Visited 2 Branch Regions . Pre-discovered Areas . | . . . Known Exits Taken 1 | . 1 . Unknown Exits Taken 1 | 1 . . Scrap Searched . | . . . Spaces Dug . | . . . Terrain Destroyed . | . . . Melee . | . . . Projectile . | . . . AOE . | . . . Terrain Rammed . | . . . Walls Destroyed . | . . . Machines Disabled . | . . . Actions | -11 -10 -9 --------- Run | Yrd Mat Mat Total 956 | . 275 681 Wait 75 | . 33 42 Move 660 | . 213 447 Hop . | . . . Pick Up 19 | . 6 13 Fast Attach 19 | . 5 14 Attach 4 | . . 4 Detach . | . . . Swap 23 | . 3 20 Drop 33 | . 7 26 Fire 120 | . 8 112 Melee 3 | . . 3 Ram . | . . . Kick . | . . . Crush . | . . . Escape Stasis . | . . . Rewire . | . . . Trap . | . . . Miscellaneous . | . . . Route ------- -11/Scrapyard -10/Materials -9/Materials History --------- Turn | Location | Event 1 | -11/Scrapyard | Discovered new exit (range 0) 1 | -11/Scrapyard | Entered Materials 174 | -10/Materials | Repaired Lgt. Ion Engine 311 | -10/Materials | Discovered new exit (range 3) 331 | -10/Materials | Identified exit to Materials 332 | -10/Materials | Entered another Materials area 332 | -9/Materials | Evolved 2 slots: Propulsion x2 350 | -9/Materials | Build established: Mutant 905 | -9/Materials | Core integrity fell below 50% 1077 | -9/Materials | Build established: Scavenger-Mutant 1099 | -9/Materials | Core integrity fell below 20% 1132 | -9/Materials | First assault squad dispatched 1248 | -9/Materials | Destroyed by G-47 Trooper with Particle Gun Last Messages --------------- 01216_ C-30 ARC bursts open, deploying its payload. 01216_ G-47 Trooper unfolds itself. 01216_ G-34 Mercenary unfolds itself. 01216_ I-25 Savior unfolds itself. 01217_ K-01 Serf collects debris. 01222_ G-34 Mercenary suffers critical hit (Burn). 01224_ K-01 Serf collects debris. 01225_ G-34 Mercenary destroyed. 01225_ Switching to secondary target: G-34 Mercenary. 01228_ K-01 Serf collects debris. 01231_ Critical hit (Burn: +37). 01237_ G-34 Mercenary destroyed. 01237_ Switching to secondary target: G-47 Trooper. 01238_ K-01 Serf collects debris. 01244_ Arm. Wheel destroyed. 01246_ K-01 Serf collects debris. Map ----- +----------------------------------------------------+ | ???????????????????????# ## ##???####%### | | ???????????????????????#""" |# ##### % ! | | ???????????????????????#""" ! # * % == | | ???????????????????????#""" [ %+ = * | | ???????????????????????#""" ![# =] ## | | ???????????????????????# # !] ##### #? | | ???????????????????????# ##=[ ##???#######? | | ???????????????????????###########%**############# | | ???????????????????????????????# = | | ??????????????????########??#??#%=[[! ! | | ??????????????????# #??#%=!= *% | | ??????????????????# """ """ #??#^^%############+## | | ??????????????????# """ """ #??#[[ #####??#??????? | | ??????????????????# """ """ #??#! =## ? #?????? | | ??????????????????# #??# ## !#?????? | | ??????????????????# !! #??# ## """ #?????? | | ??????????????????# !! #??# ## """ #?????? | | ??????????????????# #?##% ## """ #?????? | | ??????????????????###+###+##### # #?????? | | ????????????????????# %= # "" #?????? | | ????????????????????# !g[ = + """ #?????? | | ????????????????????# =ig%* # S" #?????? | | ????????????????????# [ [#### # #?????? | | ????????????????????# k=[ ######+#####+####?????? | | ????????????????????# ## ! # #????????? | | ????????????????????# @k## ! # #????????? | | ????????????????????# + ! # #????????? | | ????????????????????# ## # #????????? | | ????????????????????# ## ] # #????????? | | ????????????????????# ####### * # #????????? | | ????????????????????# #?????# % # #########? | | ????????????????????# #?????# # # ===%!#? | | ????????????????????# #???#######+##### # === ##? | | ??????????????????? + === #?? | | ????????????????????###???############### #?? | | ????????????????????????????????????????# #?? | | ????????????????????????????????????????# #?? | | ????????????????????????????????????????########?? | | | | | | | | | | | | | | | | | | | | | | | | | +----------------------------------------------------+ Best States ------------- Heat Dissipation 28 Energy Generation 14 Energy Capacity 280 Matter Stores 300 Matter Capacity 300 Sight Range 16 Terrain Scan Density 10 Evasion (%) 55 Recoil Reduction 1 Item Schematics ----------------- None Robot Schematics ------------------ None Fabricated ------------ Nothing Alien Tech Used ----------------- None Achievements -------------- None Challenges ------------ None Game ------ Seed StructuralScrapSink Manual? 0 Play Time 00:19:09 Cumulative 164.8 hours Start 2024.05.12 @ 10:39:06 End 2024.05.12 @ 11:16:42 Sessions 1 Manual Loads 0 Difficulty Rogue Special Mode None Game No. 314 Rogue 314 Adventurer 0 Explorer 0 Win Type - Total 0 Types 0/0/0/0/0/0/0/0/0 Lore% 41 Gallery% 52 Achievement% 37 Wizard Run 0 Options --------- Layout 1 ASCII 0 Keyboard 0 Movement Mouse Keybinds 0 Fullscreen 1 Font 24/Smallcaps Map View 50x40 Zoom Use 0% Tactical HUD 1 Map Filters NONE Filters NONE Steam 1 RUN: 27bec54b-ec01-467c-9c40-1d79f26fc7ac